Workbook

Sheet Vorlage
A2: Marschzeitberechnung | J2: Horizontal-Marschleistung: | K2: 5000
J3: Zuschlag aufwärts: | K3: 800
J4: Zuschlag abwärts: | K4: 1200
A6: TEILSTRECKE | G6: geometr. Parameter | K6: Marschzeit | M6: Bemerkungen
A7: Ort | B7: Anfang | C7: Höhe | D7: Ort | E7: Ende | F7: Höhe | G7: Distanz | H7: kumulativ | I7: Höhendiff. | J7: Azimut | K7: einzeln | L7: kumulativ
B8: Koordinaten | C8: m.ü.M. | D8: =IF(A9="","",A9) -> x1 | E8: Koordinaten | F8: =IF(C9="","",C9) -> 400 | G8: m | H8: 0 | I8: m | J8: Art.Prom.
A9: x1 | C9: 400 | D9: =IF(A10<>"",A10,"") -> x2 | E9: =IF(B10<>"",B10,"") ->  | F9: =IF(C10<>"",C10,"") -> 500 | G9: 100 | H9: =IF(G9="","",G9) -> 100 | I9: =IF(AND(Höhe1<>"",Höhe2<>""),Höhe2-Höhe1,"") -> 100 | K9: =IF(AND(G9<>"",I9<>""),(DistHoriz/LeistungHoriz+ ABS(IF(HöhenDiff<0,HöhenDiff/ZuschlagAbw,HöhenDiff/ZuschlagAuf)))/24,"") -> 00:08:42 | L9: =IF(K9="","",K9) -> 00:08:42
A10: x2 | C10: 500 | D10: x3 | F10: 600 | G10: 100 | H10: =IF(H9="","",H9+G10) -> 200 | I10: 100 | K10: 00:08:42 | L10: =IF(K10="","",L9+K10) -> 00:17:24
A11: x3 | C11: 600 | D11: x4 | F11: 700 | G11: 100 | H11: =IF(H10="","",H10+G11) -> 300 | I11: 100 | K11: 00:08:42 | L11: 00:26:06
A12: x4 | C12: 700 | D12: x5 | F12: 800 | G12: 100 | H12: 400 | I12: 100 | K12: 00:08:42 | L12: 00:34:48
A13: x5 | C13: 800 | D13: x6 | F13: 900 | G13: 100 | H13: 500 | I13: 100 | K13: 00:08:42 | L13: 00:43:30
A14: x6 | C14: 900 | D14: x7 | F14: 1000 | G14: 100 | H14: 600 | I14: 100 | K14: 00:08:42 | L14: 00:52:12
A15: x7 | C15: 1000 | D15: x8 | F15: 1100 | G15: 100 | H15: 700 | I15: 100 | K15: 00:08:42 | L15: 01:00:54
A16: x8 | C16: 1100 | D16: x9 | F16: 1200 | G16: 100 | H16: 800 | I16: 100 | K16: 00:08:42 | L16: 01:09:36
A17: x9 | C17: 1200 | D17: x10 | F17: 1300 | G17: 100 | H17: 900 | I17: 100 | K17: 00:08:42 | L17: 01:18:18
A18: x10 | C18: 1300 | D18: x11 | F18: 1400 | G18: 100 | H18: 1000 | I18: 100 | K18: 00:08:42 | L18: 01:27:00
A19: x11 | C19: 1400 | D19: x12 | F19: 1500 | G19: 100 | H19: 1100 | I19: 100 | K19: 00:08:42 | L19: 01:35:42
A20: x12 | C20: 1500 | D20: x13 | F20: 1600 | G20: 100 | H20: 1200 | I20: 100 | K20: 00:08:42 | L20: 01:44:24
A21: x13 | C21: 1600 | D21: x14 | F21: 1700 | G21: 100 | H21: 1300 | I21: 100 | K21: 00:08:42 | L21: 01:53:06
A22: x14 | C22: 1700 | D22: x15 | F22: 1800 | G22: 100 | H22: 1400 | I22: 100 | K22: 00:08:42 | L22: 02:01:48
A23: x15 | C23: 1800 | D23: x16 | F23: 1900 | G23: 100 | H23: 1500 | I23: 100 | K23: 00:08:42 | L23: 02:10:30
A24: x16 | C24: 1900 | D24: x17 | F24: 2000 | G24: 100 | H24: 1600 | I24: 100 | K24: 00:08:42 | L24: 02:19:12
A25: x17 | C25: 2000 | D25: x18 | F25: 2100 | G25: 100 | H25: 1700 | I25: 100 | K25: 00:08:42 | L25: 02:27:54
A26: x18 | C26: 2100 | D26: x19 | F26: 2200 | G26: 100 | H26: 1800 | I26: 100 | K26: 00:08:42 | L26: 02:36:36
A27: x19 | C27: 2200 | D27: x20 | F27: 2300 | G27: 100 | H27: 1900 | I27: 100 | K27: 00:08:42 | L27: 02:45:18
A28: x20 | C28: 2300 | D28: x21 | F28: 2400 | G28: 100 | H28: 2000 | I28: 100 | K28: 00:08:42 | L28: 02:54:00
A29: x21 | C29: 2400 | D29: x22 | F29: 2000 | G29: 100 | H29: 2100 | I29: -400 | K29: 00:21:12 | L29: 03:15:12
A30: x22 | C30: 2000 | D30: x23 | F30: 1600 | G30: 100 | H30: 2200 | I30: -400 | K30: 00:21:12 | L30: 03:36:24
A31: x23 | C31: 1600 | D31: x24 | F31: 1200 | G31: 100 | H31: 2300 | I31: -400 | K31: 00:21:12 | L31: 03:57:36
A32: x24 | C32: 1200 | D32: x25 | F32: 800 | G32: 100 | H32: 2400 | I32: -400 | K32: 00:21:12 | L32: 04:18:48
A33: x25 | C33: 800 | D33: x26 | F33: 400 | G33: 100 | H33: 2500 | I33: -400 | K33: 00:21:12 | L33: 04:40:00
A34: x26 | C34: 400
I35: =SUMIF(I9:I33,">0") -> 2000
A36: Total | G36: =IF(G9>0,SUM(G9:G33),"") -> 2500 | K36: =IF(K9<>"",SUM(K9:K33),"") -> 04:40:00 | L36: =IF(K36="","",ROUND(K36*24*4,0)/4) -> 4.75
I37: =SUMIF(I9:I33,"<0") -> -2000
A39: Höhenprofil | F39: Leistungskilometer: | G39: =IF(G36="","",G36/1000+(I35/ZuschlagAuf+I37/-ZuschlagAbw)*(LeistungHoriz/1000)) -> 23.33333333

Sheet Mutschen
A2: Marschzeitberechnung | J2: Horizontal-Marschleistung: | K2: 5000
J3: Zuschlag aufwärts: | K3: 800
J4: Zuschlag abwärts: | K4: 1200
A6: TEILSTRECKE | G6: geometr. Parameter | K6: Marschzeit | M6: Bemerkungen
A7: Ort | B7: Anfang | C7: Höhe | D7: Ort | E7: Ende | F7: Höhe | G7: Distanz | H7: kumulativ | I7: Höhendiff. | J7: Azimut | K7: einzeln | L7: kumulativ
B8: Koordinaten | C8: m.ü.M. | D8: =IF(A9="","",A9) -> Wildhaus Parkplatz | E8: Koordinaten | F8: =IF(C9="","",C9) -> 1098 | G8: m | H8: 0 | I8: m | J8: Art.Prom. | M8: Aug. 1999 ?
A9: Wildhaus Parkplatz | B9: 74500/229960 | C9: 1098 | D9: =IF(A10<>"",A10,"") -> Fros Pt. 1389 | E9: =IF(B10<>"",B10,"") ->  | F9: =IF(C10<>"",C10,"") -> 1389 | G9: 1700 | H9: =IF(G9="","",G9) -> 1700 | I9: =IF(AND(Höhe1<>"",Höhe2<>""),Höhe2-Höhe1,"") -> 291 | K9: =IF(AND(G9<>"",I9<>""),(DistHoriz/LeistungHoriz+ ABS(IF(HöhenDiff<0,HöhenDiff/ZuschlagAbw,HöhenDiff/ZuschlagAuf)))/24,"") -> 00:42:13.500 | L9: =IF(K9="","",K9) -> 00:42:13.500
A10: Fros Pt. 1389 | C10: 1389 | D10: Alp Tesel | F10: 1433 | G10: 1000 | H10: =IF(H9="","",H9+G10) -> 2700 | I10: 44 | K10: 00:15:18 | L10: =IF(K10="","",L9+K10) -> 00:57:31.500
A11: Alp Tesel | C11: 1433 | D11: Chreialp | F11: 1817 | G11: 1700 | H11: 4400 | I11: 384 | K11: 00:49:12 | L11: 01:46:43.500
A12: Chreialp | C12: 1817 | D12: Zwinglipass | F12: 2011 | G12: 1000 | H12: 5400 | I12: 194 | K12: 00:26:33 | L12: 02:13:16.500
A13: Zwinglipass | C13: 2011 | D13: Chreialpfirst | F13: 2126 | G13: 1500 | H13: 6900 | I13: 115 | K13: 00:26:37.500 | L13: 02:39:54
A14: Chreialpfirst | C14: 2126 | D14: Mutschensattel | F14: 2069 | G14: 600 | H14: 7500 | I14: -57 | K14: 00:10:03 | L14: 02:49:57
A15: Mutschensattel | C15: 2069 | D15: Mutschen | F15: 2122 | G15: 100 | H15: 7600 | I15: 53 | K15: 00:05:10.500 | L15: 02:55:07.500
A16: Mutschen | C16: 2122 | D16: Alp Grueb | F16: 1752 | G16: 1600 | H16: 9200 | I16: -370 | K16: 00:37:42 | L16: 03:32:49.500
A17: Alp Grueb | C17: 1752 | D17: Fros Pt. 1389 | F17: 1389 | G17: 2800 | H17: 12000 | I17: -363 | K17: 00:51:45 | L17: 04:24:34.500
A18: Fros Pt. 1389 | C18: 1389 | D18: Wildhaus Parkplatz | F18: 1098 | G18: 1700 | H18: 13700 | I18: -291 | K18: 00:34:57 | L18: 04:59:31.500
A19: Wildhaus Parkplatz | C19: 1098 | H19: 13700
H20: 13700
H21: 13700
H22: 13700
H23: 13700
H24: 13700
H25: 13700
H26: 13700
H27: 13700
H28: 13700
H29: 13700
H30: 13700
H31: 13700
H32: 13700
H33: 13700
I35: =SUMIF(I9:I33,">0") -> 1081
A36: Total | G36: =IF(G9>0,SUM(G9:G33),"") -> 13700 | K36: =IF(K9<>"",SUM(K9:K33),"") -> 04:59:31.500 | L36: =IF(K36="","",ROUND(K36*24*4,0)/4) -> 5
I37: =SUMIF(I9:I33,"<0") -> -1081
A39: Höhenprofil | F39: Leistungskilometer: | G39: =IF(G36="","",G36/1000+(I35/100)) -> 24.51

Sheet Alvier
A2: Marschzeitberechnung | J2: Horizontal-Marschleistung: | K2: 5000
J3: Zuschlag aufwärts: | K3: 800
J4: Zuschlag abwärts: | K4: 1200
A6: TEILSTRECKE | G6: geometr. Parameter | K6: Marschzeit | M6: Bemerkungen
A7: Ort | B7: Anfang | C7: Höhe | D7: Ort | E7: Ende | F7: Höhe | G7: Distanz | H7: kumulativ | I7: Höhendiff. | J7: Azimut | K7: einzeln | L7: kumulativ
B8: Koordinaten | C8: m.ü.M. | D8: =IF(A9="","",A9) -> Oberschan Pt 1497 | E8: Koordinaten | F8: =IF(C9="","",C9) -> 1497 | G8: m | H8: 0 | I8: m | J8: Art.Prom. | M8: Sep 1999 ?
A9: Oberschan Pt 1497 | B9: 751500/217300 | C9: 1497 | D9: =IF(A10<>"",A10,"") -> Pt. 1410 | E9: =IF(B10<>"",B10,"") ->  | F9: =IF(C10<>"",C10,"") -> 1410 | G9: 700 | H9: =IF(G9="","",G9) -> 700 | I9: =IF(AND(Höhe1<>"",Höhe2<>""),Höhe2-Höhe1,"") -> -87 | K9: =IF(AND(G9<>"",I9<>""),(DistHoriz/LeistungHoriz+ ABS(IF(HöhenDiff<0,HöhenDiff/ZuschlagAbw,HöhenDiff/ZuschlagAuf)))/24,"") -> 00:12:45 | L9: =IF(K9="","",K9) -> 00:12:45
A10: Pt. 1410 | C10: 1410 | D10: Flidachöpf | F10: 1540 | G10: 1250 | H10: =IF(H9="","",H9+G10) -> 1950 | I10: 130 | K10: 00:24:45 | L10: =IF(K10="","",L9+K10) -> 00:37:30
A11: Flidachöpf | C11: 1540 | D11: Pt. 1693 | F11: 1693 | G11: 900 | H11: 2850 | I11: 153 | K11: 00:22:16.500 | L11: 00:59:46.500
A12: Pt. 1693 | C12: 1693 | D12: Pt. 1803 | F12: 1803 | G12: 800 | H12: 3650 | I12: 110 | K12: 00:17:51 | L12: 01:17:37.500
A13: Pt. 1803 | C13: 1803 | D13: Sattel | F13: 2070 | G13: 950 | H13: 4600 | I13: 267 | K13: 00:31:25.500 | L13: 01:49:03
A14: Sattel | C14: 2070 | D14: Alvier | F14: 2343 | G14: 850 | H14: 5450 | I14: 273 | K14: 00:30:40.500 | L14: 02:19:43.500
A15: Alvier | C15: 2343 | D15: Chemmi | F15: 2185 | G15: 400 | H15: 5850 | I15: -158 | K15: 00:12:42 | L15: 02:32:25.500
A16: Chemmi | C16: 2185 | D16: Pt 1880 | F16: 1880 | G16: 400 | H16: 6250 | I16: -305 | K16: 00:20:03 | L16: 02:52:28.500
A17: Pt 1880 | C17: 1880 | D17: Palfries (Waldguet) | F17: 1700 | G17: 1200 | H17: 7450 | I17: -180 | K17: 00:23:24 | L17: 03:15:52.500
A18: Palfries (Waldguet) | C18: 1700 | D18: Hinterlabria (Übergang) | F18: 1780 | G18: 500 | H18: 7950 | I18: 80 | K18: 00:12:00 | L18: 03:27:52.500
A19: Hinterlabria (Übergang) | C19: 1780 | D19: Oberschan Pt 1497 | E19: 751500/217300 | F19: 1497 | G19: 1600 | H19: 9550 | I19: -283 | K19: 00:33:21 | L19: 04:01:13.500
A20: Oberschan Pt 1497 | B20: 751500/217300 | C20: 1497 | H20: 9550
H21: 9550
H22: 9550
H23: 9550
H24: 9550
H25: 9550
H26: 9550
H27: 9550
H28: 9550
H29: 9550
H30: 9550
H31: 9550
H32: 9550
H33: 9550
I35: =SUMIF(I9:I33,">0") -> 1013
A36: Total | G36: =IF(G9>0,SUM(G9:G33),"") -> 9550 | K36: =IF(K9<>"",SUM(K9:K33),"") -> 04:01:13.500 | L36: =IF(K36="","",ROUND(K36*24*4,0)/4) -> 4
I37: =SUMIF(I9:I33,"<0") -> -1013
A39: Höhenprofil | F39: Leistungskilometer: | G39: =IF(G36="","",G36/1000+(I35/100)) -> 19.68

Sheet Alpstein-Runde
A2: Marschzeitberechnung | J2: Horizontal-Marschleistung: | K2: 5000 | M2: 5000
J3: Zuschlag aufwärts: | K3: 800 | L3: mein Tempo | M3: 1600
J4: Zuschlag abwärts: | K4: 1200 | M4: 1800
A6: TEILSTRECKE | G6: geometr. Parameter | K6: Marschzeit | M6: Bemerkungen
A7: Ort | B7: Anfang | C7: Höhe | D7: Ort | E7: Ende | F7: Höhe | G7: Distanz | H7: kumulativ | I7: Höhendiff. | J7: Azimut | K7: einzeln | L7: kumulativ
B8: Koordinaten | C8: m.ü.M. | D8: =IF(A9="","",A9) -> Plona | E8: Koordinaten | F8: =IF(C9="","",C9) -> 700 | G8: m | H8: 0 | I8: m | J8: Art.Prom. | M8: 11.9.1999 ?
A9: Plona | B9: 756240/239210 | C9: 700 | D9: =IF(A10<>"",A10,"") -> Unterkamor | E9: =IF(B10<>"",B10,"") ->  | F9: =IF(C10<>"",C10,"") -> 1588 | G9: 4000 | H9: =IF(G9="","",G9) -> 4000 | I9: =IF(AND(Höhe1<>"",Höhe2<>""),Höhe2-Höhe1,"") -> 888 | K9: =IF(AND(G9<>"",I9<>""),(DistHoriz/LeistungHoriz+ ABS(IF(HöhenDiff<0,HöhenDiff/ZuschlagAbw,HöhenDiff/ZuschlagAuf)))/24,"") -> 01:54:36 | L9: =IF(K9="","",K9) -> 01:54:36 | M9: 1 Std. Anfahrt mit Velo
A10: Unterkamor | C10: 1588 | D10: Hoher Kasten | F10: 1795 | G10: 1750 | H10: =IF(H9="","",H9+G10) -> 5750 | I10: 207 | K10: 00:36:31.500 | L10: =IF(K10="","",L9+K10) -> 02:31:07.500 | M10: 1 Std. 40' eff.
A11: Hoher Kasten | C11: 1795 | D11: Baritsch | F11: 1591 | G11: 800 | H11: 6550 | I11: -204 | K11: 00:19:48 | L11: 02:50:55.500
A12: Baritsch | C12: 1591 | D12: Stauberenfirst | F12: 1693 | G12: 2600 | H12: 9150 | I12: 102 | K12: 00:38:51 | L12: 03:29:46.500
A13: Stauberenfirst | C13: 1693 | D13: Bollenweeser Schafberg | F13: 1791 | G13: 2800 | H13: 11950 | I13: 98 | K13: 00:40:57 | L13: 04:10:43.500
A14: Bollenweeser Schafberg | C14: 1791 | D14: Saxer Lücke | F14: 1649 | G14: 700 | H14: 12650 | I14: -142 | K14: 00:15:30 | L14: 04:26:13.500
A15: Saxer Lücke | C15: 1649 | D15: Roslenalp | F15: 1767 | G15: 700 | H15: 13350 | I15: 118 | K15: 00:17:15 | L15: 04:43:28.500
A16: Roslenalp | C16: 1767 | D16: Wetterloch | F16: 2030 | G16: 900 | H16: 14250 | I16: 263 | K16: 00:30:31.500 | L16: 05:14:00
A17: Wetterloch | C17: 2030 | D17: Mutschen | F17: 2122 | G17: 900 | H17: 15150 | I17: 92 | K17: 00:17:42 | L17: 05:31:42
A18: Mutschen | C18: 2122 | D18: Alp Grueb | F18: 1752 | G18: 1600 | H18: 16750 | I18: -370 | K18: 00:37:42 | L18: 06:09:24
A19: Alp Grueb | C19: 1752 | D19: Fros Pt. 1389 | F19: 1389 | G19: 2800 | H19: 19550 | I19: -363 | K19: 00:51:45 | L19: 07:01:09
A20: Fros Pt. 1389 | C20: 1389 | D20: Wildhaus Zentrum | F20: 1090 | G20: 1800 | H20: 21350 | I20: -299 | K20: 00:36:33 | L20: 07:37:42 | M20: 1 1/4 Std. eff.
A21: Wildhaus Zentrum | C21: 1090 | D21: Kollersweid-Munzenried | F21: 1027 | G21: 900 | H21: 22250 | I21: -63 | K21: 00:13:57 | L21: 07:51:39
A22: Kollersweid-Munzenried | C22: 1027 | D22: Kollersweidlift top | F22: 1243 | G22: 1100 | H22: 23350 | I22: 216 | K22: 00:29:24 | L22: 08:21:03
A23: Kollersweidlift top | C23: 1243 | D23: Pt. 1310 | F23: 1310 | G23: 200 | H23: 23550 | I23: 67 | K23: 00:07:25.500 | L23: 08:28:28.500
A24: Pt. 1310 | C24: 1310 | D24: Ölberg | F24: 1431 | G24: 1800 | H24: 25350 | I24: 121 | K24: 00:30:40.500 | L24: 08:59:09
A25: Ölberg | C25: 1431 | D25: Herti | F25: 1399 | G25: 1000 | H25: 26350 | I25: -32 | K25: 00:13:36 | L25: 09:12:45 | M25: 2 1/2 Std. eff.
A26: Herti | C26: 1399 | D26: Rohregg | F26: 1096 | G26: 1750 | H26: 28100 | I26: -303 | K26: 00:36:09 | L26: 09:48:54
A27: Rohregg | C27: 1096 | D27: Eggenberg | F27: 960 | G27: 1100 | H27: 29200 | I27: -136 | K27: 00:20:00 | L27: 10:08:54
A28: Eggenberg | C28: 960 | D28: Kohlplatz | F28: 497 | G28: 2100 | H28: 31300 | I28: -463 | K28: 00:48:21 | L28: 10:57:15
A29: Kohlplatz | C29: 497 | H29: 31300
H30: 31300
H31: 31300
H32: 31300
H33: 31300
I35: =SUMIF(I9:I33,">0") -> 2172
A36: Total | G36: =IF(G9>0,SUM(G9:G33),"") -> 31300 | K36: =IF(K9<>"",SUM(K9:K33),"") -> 10:57:15 | L36: =IF(K36="","",ROUND(K36*24*4,0)/4) -> 11 | M36: 9 Std. eff.
I37: =SUMIF(I9:I33,"<0") -> -2375
A39: Höhenprofil | F39: Leistungskilometer: | G39: =IF(G36="","",G36/1000+(I35/100)) -> 53.02

Sheet Gonzen-Gauschla-Alvier
A2: Marschzeitberechnung | J2: Horizontal-Marschleistung: | K2: 5000 | M2: 5000
J3: Zuschlag aufwärts: | K3: 800 | L3: mein Tempo | M3: 1600
J4: Zuschlag abwärts: | K4: 1200 | M4: 1800
A6: TEILSTRECKE | G6: geometr. Parameter | K6: Marschzeit | M6: Bemerkungen
A7: Ort | B7: Anfang | C7: Höhe | D7: Ort | E7: Ende | F7: Höhe | G7: Distanz | H7: kumulativ | I7: Höhendiff. | J7: Azimut | K7: einzeln | L7: kumulativ | M7: 1999-10-27
B8: Koordinaten | C8: m.ü.M. | D8: =IF(A9="","",A9) -> Sargans Zentrum | E8: Koordinaten | F8: =IF(C9="","",C9) -> 483 | G8: m | H8: 0 | I8: m | J8: Art.Prom. | M8: eff. Zeit
A9: Sargans Zentrum | C9: 483 | D9: =IF(A10<>"",A10,"") -> Pt 731 | E9: =IF(B10<>"",B10,"") ->  | F9: =IF(C10<>"",C10,"") -> 731 | G9: 1750 | H9: =IF(G9="","",G9) -> 1750 | I9: =IF(AND(Höhe1<>"",Höhe2<>""),Höhe2-Höhe1,"") -> 248 | K9: =IF(AND(G9<>"",I9<>""),(DistHoriz/LeistungHoriz+ ABS(IF(HöhenDiff<0,HöhenDiff/ZuschlagAbw,HöhenDiff/ZuschlagAuf)))/24,"") -> 00:39:36 | L9: =IF(K9="","",K9) -> 00:39:36 | M9: 23'
A10: Pt 731 | C10: 731 | D10: Leiter Fuss | F10: 1220 | G10: 2750 | H10: =IF(H9="","",H9+G10) -> 4500 | I10: 489 | K10: 01:09:40.500 | L10: =IF(K10="","",L9+K10) -> 01:49:16.500 | M10: 47'
A11: Leiter Fuss | C11: 1220 | D11: Älpli | F11: 1337 | G11: 300 | H11: =IF(H10="","",H10+G11) -> 4800 | I11: 117 | K11: 00:12:22.500 | L11: 02:01:39 | M11: 8'
A12: Älpli | C12: 1337 | D12: Gonzen | F12: 1829 | G12: 1600 | H12: 6400 | I12: 492 | K12: 00:56:06 | L12: 02:57:45 | M12: 38' (exkl. 8' Pause)
A13: Gonzen | C13: 1829 | D13: Waldguet Verzw. | F13: 1690 | G13: 3250 | H13: 9650 | I13: -139 | K13: 00:45:57 | L13: 03:43:42 | M13: 36'
A14: Waldguet Verzw. | C14: 1690 | D14: Verzw. Pt. 1789 | F14: 1789 | G14: 800 | H14: 10450 | I14: 99 | K14: 00:17:01.500 | L14: 04:00:43.500 | M14: 15'
A15: Verzw. Pt. 1789 | C15: 1789 | D15: Chemmi | F15: 2185 | G15: 1075 | H15: 11525 | I15: 396 | K15: 00:42:36 | L15: 04:43:19.500 | M15: 31'
A16: Chemmi | C16: 2185 | D16: Forggla | F16: 2070 | G16: 350 | H16: 11875 | I16: -115 | K16: 00:09:57 | L16: 04:53:16.500
A17: Forggla | C17: 2070 | D17: Gauschla | F17: 2310 | G17: 1250 | H17: 13125 | I17: 240 | K17: 00:33:00 | L17: 05:26:16.500 | M17: 35' (exkl. 13' Pause)
A18: Gauschla | C18: 2310 | D18: Forggla | F18: 2070 | G18: 1250 | H18: 14375 | I18: -240 | K18: 00:27:00 | L18: 05:53:16.500
A19: Forggla | C19: 2070 | D19: Chemmi | F19: 2185 | G19: 350 | H19: 14725 | I19: 115 | K19: 00:12:49.500 | L19: 06:06:06
A20: Chemmi | C20: 2185 | D20: Alvier | F20: 2343 | G20: 400 | H20: 15125 | I20: 158 | K20: 00:16:39 | L20: 06:22:45 | M20: 38' (exkl. 7' Pause)
A21: Alvier | C21: 2343 | D21: Malschüel Obersäss | F21: 1777 | G21: 1975 | H21: 17100 | I21: -566 | K21: 00:52:00 | L21: 07:14:45
A22: Malschüel Obersäss | C22: 1777 | D22: Malschüel Untersäss | F22: 1487 | G22: 1250 | H22: 18350 | I22: -290 | K22: 00:29:30 | L22: 07:44:15
A23: Malschüel Untersäss | C23: 1487 | D23: Gamshalden | F23: 1506 | G23: 500 | H23: 18850 | I23: 19 | K23: 00:07:25.500 | L23: 07:51:40.500
A24: Gamshalden | C24: 1506 | D24: Buchser Malbun | F24: 1369 | G24: 2600 | H24: 21450 | I24: -137 | K24: 00:38:03 | L24: 08:29:43.500 | M24: 1h 43' (exkl. 6' Pause)
A25: Buchser Malbun | C25: 1369 | D25: Kurhaus | F25: 1111 | G25: 1275 | H25: 22725 | I25: -258 | K25: 00:28:12 | L25: 08:57:55.500
A26: Kurhaus | C26: 1111 | D26: Buchs Zentrum Pt. 451 | F26: 451 | G26: 3575 | H26: 26300 | I26: -660 | K26: 01:15:54 | L26: 10:13:49.500 | M26: 1h 41'
A27: Buchs Zentrum Pt. 451 | C27: 451 | D27: Grabs Chilbibrugg | F27: 476 | G27: 2950 | H27: 29250 | I27: 25 | K27: 00:37:16.500 | L27: 10:51:06 | M27: 36'
A28: Grabs Chilbibrugg | C28: 476 | H28: 29250 | M28: Malbun-Buchs
H29: 29250 | M29: längerer Weg:
H30: 29250 | M30: Strasse entlang (dunkel)
H31: 29250 | M31: zurück und Umweg
H32: 29250 | M32: wegen
H33: 29250 | M33: streunenden Hunden
I35: =SUMIF(I9:I33,">0") -> 2398
A36: Total | G36: =IF(G9>0,SUM(G9:G33),"") -> 29250 | K36: =IF(K9<>"",SUM(K9:K33),"") -> 10:51:06 | L36: =IF(K36="","",ROUND(K36*24*4,0)/4) -> 10.75 | M36: 8h 39' (exkl. 27' Pause)
I37: =SUMIF(I9:I33,"<0") -> -2405
A39: Höhenprofil | F39: Leistungskilometer: | G39: =IF(G36="","",G36/1000+(I35/100)) -> 53.23

Sheet Falknis
A2: Marschzeitberechnung | J2: Horizontal-Marschleistung: | K2: 5000 | M2: 5000
J3: Zuschlag aufwärts: | K3: 800 | L3: mein Tempo | M3: 1450
J4: Zuschlag abwärts: | K4: 1200 | M4: 2700
A6: TEILSTRECKE | G6: geometr. Parameter | K6: Marschzeit | M6: Bemerkungen
A7: Ort | B7: Anfang | C7: Höhe | D7: Ort | E7: Ende | F7: Höhe | G7: Distanz | H7: kumulativ | I7: Höhendiff. | J7: Azimut | K7: einzeln | L7: kumulativ | M7: 1999-11-02
B8: Koordinaten | C8: m.ü.M. | D8: =IF(A9="","",A9) -> St. Luzisteig | E8: Koordinaten | F8: =IF(C9="","",C9) -> 691 | G8: m | H8: 0 | I8: m | J8: Art.Prom. | M8: eff. Zeit (ohne Pausen)
A9: St. Luzisteig | B9: 758750/211750 | C9: 691 | D9: =IF(A10<>"",A10,"") -> Fläscher Tannwald | E9: =IF(B10<>"",B10,"") ->  | F9: =IF(C10<>"",C10,"") -> 837 | G9: 1275 | H9: =IF(G9="","",G9) -> 1275 | I9: =IF(AND(Höhe1<>"",Höhe2<>""),Höhe2-Höhe1,"") -> 146 | K9: =IF(AND(G9<>"",I9<>""),(DistHoriz/LeistungHoriz+ ABS(IF(HöhenDiff<0,HöhenDiff/ZuschlagAbw,HöhenDiff/ZuschlagAuf)))/24,"") -> 00:26:15 | L9: =IF(K9="","",K9) -> 00:26:15 | M9: 17
A10: Fläscher Tannwald | C10: 837 | D10: Loch-Gleggtobel (Brücke) | F10: 990 | G10: 975 | H10: =IF(H9="","",H9+G10) -> 2250 | I10: 153 | K10: 00:23:10.500 | L10: =IF(K10="","",L9+K10) -> 00:49:25.500 | M10: 14
A11: Loch-Gleggtobel (Brücke) | C11: 990 | D11: Enderlinhütte SAC | F11: 1501 | G11: 1150 | H11: 3400 | I11: 511 | K11: 00:52:07.500 | L11: 01:41:33 | M11: 35
A12: Enderlinhütte SAC | C12: 1501 | D12: Unter den Türm (Kehrpt.) | E12: 760690/212260 | F12: 1800 | G12: 550 | H12: 3950 | I12: 299 | K12: 00:29:01.500 | L12: 02:10:34.500 | M12: 20
A13: Unter den Türm (Kehrpt.) | B13: 760690/212260 | C13: 1800 | D13: Fläscher Fürggli | F13: 2247 | G13: 1375 | H13: 5325 | I13: 447 | K13: 00:50:01.500 | L13: 03:00:36 | M13: 40
A14: Fläscher Fürggli | C14: 2247 | D14: Falknis | F14: 2562 | G14: 950 | H14: 6275 | I14: 315 | K14: 00:35:01.500 | L14: 03:35:37.500 | M14: 25
A15: Falknis | C15: 2562 | D15: Ob den Türm (ab-auf-Wechsel) | F15: 2380 | G15: 450 | H15: 6725 | I15: -182 | K15: 00:14:30 | L15: 03:50:07.500 | M15: 15
A16: Ob den Türm (ab-auf-Wechsel) | C16: 2380 | D16: Falknishorn (Mazorakopf) | F16: 2452 | G16: 375 | H16: 7100 | I16: 72 | K16: 00:09:54 | L16: 04:00:01.500 | M16: 9
A17: Falknishorn (Mazorakopf) | C17: 2452 | D17: Mazorahöhi | F17: 2045 | G17: 1275 | H17: 8375 | I17: -407 | K17: 00:35:39 | L17: 04:35:40.500 | M17: 32
A18: Mazorahöhi | C18: 2045 | D18: Rotspitz | F18: =IF(C19<>"",C19,"") -> 2127 | G18: 325 | H18: 8700 | I18: 82 | K18: 00:10:03 | L18: 04:45:43.500 | M18: 7
A19: Rotspitz | C19: 2127 | D19: Mittlerspitz | F19: 1897 | G19: 1275 | H19: 9975 | I19: -230 | K19: 00:26:48 | L19: 05:12:31.500 | M19: 23
A20: Mittlerspitz | C20: 1897 | D20: Würznerhorn (Guschner Gir) | F20: 1713 | G20: 750 | H20: 10725 | I20: -184 | K20: 00:18:12 | L20: 05:30:43.500 | M20: 13
A21: Würznerhorn (Guschner Gir) | C21: 1713 | D21: Birch | E21: 759010/213975 | F21: 1370 | G21: 1300 | H21: 12025 | I21: -343 | K21: 00:32:45 | L21: 06:03:28.500 | M21: 20
A22: Birch | B22: 759010/213975 | C22: 1370 | D22: Guscha | F22: 1115 | G22: 1050 | H22: 13075 | I22: -255 | K22: 00:25:21 | L22: 06:28:49.500 | M22: 14
A23: Guscha | C23: 1115 | D23: Rappentobel (Pt. 834) | F23: 834 | G23: 1300 | H23: 14375 | I23: -281 | K23: 00:29:39 | L23: 06:58:28.500 | M23: 15
A24: Rappentobel (Pt. 834) | C24: 834 | D24: St. Luzisteig | E24: 758750/211750 | F24: 691 | G24: 725 | H24: 15100 | I24: -143 | K24: 00:15:51 | L24: 07:14:19.500 | M24: 10
A25: St. Luzisteig | B25: 758750/211750 | C25: 691 | H25: 15100
H26: 15100 | M26: Pausen (tot. 49')
H27: 15100 | M27: 10' Enderlinhütte
H28: 15100 | M28: 15' Falknis
H29: 15100 | M29: 4' Mazorakopf
H30: 15100 | M30: 2' Rotspitz
H31: 15100 | M31: 8' Mittlerspitz
H32: 15100 | M32: 10' Birch (Gespräch)
H33: 15100
I35: =SUMIF(I9:I33,">0") -> 2025
A36: Total | G36: =IF(G9>0,SUM(G9:G33),"") -> 15100 | K36: =IF(K9<>"",SUM(K9:K33),"") -> 07:14:19.500 | L36: =IF(K36="","",ROUND(K36*24*4,0)/4) -> 7.25 | M36: =ROUND(SUM(M9:M24)/60*4,0)/4 -> 5.25
I37: =SUMIF(I9:I33,"<0") -> -2025
A39: Höhenprofil | F39: Leistungskilometer: | G39: =IF(G36="","",G36/1000+(I35/100)) -> 35.35

Sheet Alvierkette
A2: Marschzeitberechnung | J2: Horizontal-Marschleistung: | K2: 5000
J3: Zuschlag aufwärts: | K3: 800
J4: Zuschlag abwärts: | K4: 1200
A6: TEILSTRECKE | G6: geometr. Parameter | K6: Marschzeit | M6: Bemerkungen
A7: Ort | B7: Anfang | C7: Höhe | D7: Ort | E7: Ende | F7: Höhe | G7: Distanz | H7: kumulativ | I7: Höhendiff. | J7: Azimut | K7: einzeln | L7: kumulativ
B8: Koordinaten | C8: m.ü.M. | D8: =IF(A9="","",A9) -> Grabs (Simmibödeli) | E8: Koordinaten | F8: =IF(C9="","",C9) -> 547 | G8: m | H8: 0 | I8: m | J8: Art.Prom.
A9: Grabs (Simmibödeli) | B9: 750'850/228'900 | C9: 547 | D9: =IF(A10<>"",A10,"") -> Loch | F9: 749 | G9: 1250 | H9: =IF(G9="","",G9) -> 1250 | I9: =IF(AND(Höhe1<>"",Höhe2<>""),Höhe2-Höhe1,"") -> 202 | K9: =IF(AND(G9<>"",I9<>""),(DistHoriz/LeistungHoriz+ ABS(IF(HöhenDiff<0,HöhenDiff/ZuschlagAbw,HöhenDiff/ZuschlagAuf)))/24,"") -> 00:30:09 | L9: =IF(K9="","",K9) -> 00:30:09
A10: Loch | C10: 749 | D10: Bädli (Abzweigung) | F10: 890 | G10: 900 | H10: =IF(H9="","",H9+G10) -> 2150 | I10: 141 | K10: =IF(AND(G10<>"",I10<>""),(DistHoriz/LeistungHoriz+ ABS(IF(HöhenDiff<0,HöhenDiff/ZuschlagAbw,HöhenDiff/ZuschlagAuf)))/24,"") -> 00:21:22.500 | L10: =IF(K10="","",L9+K10) -> 00:51:31.500
A11: Bädli (Abzweigung) | C11: 890 | D11: Hiltisbrunnen | F11: 1208 | G11: 2750 | H11: =IF(H10="","",H10+G11) -> 4900 | I11: 318 | K11: =IF(AND(G11<>"",I11<>""),(DistHoriz/LeistungHoriz+ ABS(IF(HöhenDiff<0,HöhenDiff/ZuschlagAbw,HöhenDiff/ZuschlagAuf)))/24,"") -> 00:56:51 | L11: =IF(K11="","",L10+K11) -> 01:48:22.500
A12: Hiltisbrunnen | C12: 1208 | D12: =IF(A13<>"",A13,"") -> Schöntobel | E12: =IF(B13<>"",B13,"") ->  | F12: =IF(C13<>"",C13,"") -> 1391 | G12: 2650 | H12: 7550 | I12: 183 | K12: =IF(AND(G12<>"",I12<>""),(DistHoriz/LeistungHoriz+ ABS(IF(HöhenDiff<0,HöhenDiff/ZuschlagAbw,HöhenDiff/ZuschlagAuf)))/24,"") -> 00:45:31.500 | L12: =IF(K12="","",L11+K12) -> 02:33:54
A13: Schöntobel | C13: 1391 | D13: Gamsalp | F13: 1767 | G13: 2950 | H13: 10500 | I13: 376 | K13: 01:03:36 | L13: 03:37:30
A14: Gamsalp | C14: 1767 | D14: Gamserrugg | F14: 2070 | G14: 1450 | H14: 11950 | I14: 303 | K14: 00:40:07.500 | L14: 04:17:37.500
A15: Gamserrugg | C15: 2070 | D15: Sattel | F15: 1944 | G15: 925 | H15: 12875 | I15: -126 | K15: 00:17:24 | L15: 04:35:01.500
A16: Sattel | C16: 1944 | D16: Chäserrugg | F16: 2262 | G16: 1850 | H16: 14725 | I16: 318 | K16: 00:46:03 | L16: 05:21:04.500
A17: Chäserrugg | C17: 2262 | D17: Tistencholben | F17: 2160 | G17: 1650 | H17: 16375 | I17: -102 | K17: 00:24:54 | L17: 05:45:58.500
A18: Tistencholben | C18: 2160 | D18: Sattel | F18: 1944 | G18: 2350 | H18: 18725 | I18: -216 | K18: 00:39:00 | L18: 06:24:58.500
A19: Sattel | C19: 1944 | D19: Schlawitz (Verwz. Pizol) | F19: 1710 | G19: 1150 | H19: 19875 | I19: -234 | K19: 00:25:30 | L19: 06:50:28.500
A20: Schlawitz (Verwz. Pizol) | C20: 1710 | D20: Nideri | F20: 1833 | G20: 500 | H20: 20375 | I20: 123 | K20: 00:15:13.500 | L20: 07:05:42
A21: Nideri | C21: 1833 | D21: Höchst | F21: 2025 | G21: 1000 | H21: 21375 | I21: 192 | K21: 00:26:24 | L21: 07:32:06
A22: Höchst | C22: 2025 | D22: Sichelchamm | F22: 2269 | G22: 1650 | H22: 23025 | I22: 244 | K22: 00:38:06 | L22: 08:10:12
A23: Sichelchamm | C23: 2269 | D23: Schiffloch | F23: 2000 | G23: 375 | H23: 23400 | I23: -269 | K23: 00:17:57 | L23: 08:28:09
A24: Schiffloch | C24: 2000 | D24: Schiffberg | F24: 2195 | G24: 450 | H24: 23850 | I24: 195 | K24: 00:20:01.500 | L24: 08:48:10.500
A25: Schiffberg | C25: 2195 | D25: Gamsberg | F25: 2385 | G25: 1050 | H25: 24900 | I25: 190 | K25: 00:26:51 | L25: 09:15:01.500
A26: Gamsberg | C26: 2385 | D26: Chemmi (Gamsberg) | F26: 2170 | G26: 425 | H26: 25325 | I26: -215 | K26: 00:15:51 | L26: 09:30:52.500
A27: Chemmi (Gamsberg) | C27: 2170 | D27: Loch (Büelen-Nideri) | F27: 1860 | G27: 1100 | H27: 26425 | I27: -310 | K27: 00:28:42 | L27: 09:59:34.500
A28: Loch (Büelen-Nideri) | C28: 1860 | D28: Rotstein | F28: 2225 | G28: 1400 | H28: 27825 | I28: 365 | K28: 00:44:10.500 | L28: 10:43:45
A29: Rotstein | C29: 2225 | D29: Sichli | F29: 2320 | G29: 450 | H29: 28275 | I29: 95 | K29: 00:12:31.500 | L29: 10:56:16.500
A30: Sichli | C30: 2320 | D30: Rosswis | F30: 2334 | G30: 300 | H30: 28575 | I30: 14 | K30: 00:04:39 | L30: 11:00:55.500
A31: Rosswis | C31: 2334 | D31: Sisitzgrat | F31: 2016 | G31: 1650 | H31: 30225 | I31: -318 | K31: 00:35:42 | L31: 11:36:37.500
A32: Sisitzgrat | C32: 2016 | D32: Margelchopf | F32: 2163 | G32: 500 | H32: 30725 | I32: 147 | K32: 00:17:01.500 | L32: 11:53:39
A33: Margelchopf | C33: 2163 | D33: Glannachopf | F33: 2232 | G33: 800 | H33: 31525 | I33: 69 | K33: 00:14:46.500 | L33: 12:08:25.500
A34: Glannachopf | C34: 2232 | D34: Chli Fulfirst | F34: 2372 | G34: 1550 | H34: 33075 | I34: 140 | K34: 00:29:06 | L34: 12:37:31.500
A35: Chli Fulfirst | C35: 2372 | D35: Fulfirst | F35: 2384 | G35: 200 | H35: 33275 | I35: 12 | K35: 00:03:18 | L35: 12:40:49.500
A36: Fulfirst | C36: 2384 | D36: Malun Pt. 1922 | F36: 1922 | G36: 1500 | H36: 34775 | I36: -462 | K36: 00:41:06 | L36: 13:21:55.500
A37: Malun Pt. 1922 | C37: 1922 | D37: Verzw. Zwingler | F37: 1900 | G37: 600 | H37: 35375 | I37: -22 | K37: 00:08:18 | L37: 13:30:13.500
A38: Verzw. Zwingler | C38: 1900 | D38: Chli Alvier | F38: 2285 | G38: 1050 | H38: 36425 | I38: 385 | K38: 00:41:28.500 | L38: 14:11:42
A39: Chli Alvier | C39: 2285 | D39: Alvier | F39: 2343 | G39: 400 | H39: 36825 | I39: 58 | K39: 00:09:09 | L39: 14:20:51
A40: Alvier | C40: 2343 | D40: Sattel | F40: 2070 | G40: 850 | H40: 37675 | I40: -273 | K40: 00:23:51 | L40: 14:44:42
A41: Sattel | C41: 2070 | D41: Chopf | F41: 1997 | G41: 1000 | H41: 38675 | I41: -73 | K41: 00:15:39 | L41: 15:00:21
A42: Chopf | C42: 1997 | D42: Hurst (Arin) | F42: 1971 | G42: 600 | H42: 39275 | I42: -26 | K42: 00:08:30 | L42: 15:08:51
A43: Hurst (Arin) | C43: 1971 | D43: Sattel | F43: 2070 | G43: 1150 | H43: 40425 | I43: 99 | K43: 00:21:13.500 | L43: 15:30:04.500
A44: Sattel | C44: 2070 | D44: Matschuns | F44: 2040 | G44: 1250 | H44: 41675 | I44: -30 | K44: 00:16:30 | L44: 15:46:34.500
A45: Matschuns | C45: 2040 | D45: =IF(A46<>"",A46,"") -> Gauschla | F45: 2310 | G45: 5050 | H45: =IF(H44="","",H44+G45) -> 46725 | I45: 270 | K45: 01:20:51 | L45: 17:07:25.500
A46: Gauschla | C46: 2310 | D46: Fidachöpf | F46: 1540 | G46: 2250 | H46: 48975 | I46: -770 | K46: 01:05:30 | L46: 18:12:55.500
A47: Fidachöpf | C47: 1540 | D47: Pt. 1410 | F47: 1410 | G47: 1250 | H47: 50225 | I47: -130 | K47: =IF(AND(G47<>"",I47<>""),(DistHoriz/LeistungHoriz+ ABS(IF(HöhenDiff<0,HöhenDiff/ZuschlagAbw,HöhenDiff/ZuschlagAuf)))/24,"") -> 00:21:30 | L47: =IF(K47="","",L46+K47) -> 18:34:25.500
A48: Pt. 1410 | C48: 1410 | D48: Gonzen | F48: 1829 | G48: 3950 | H48: 54175 | I48: 419 | K48: =IF(AND(G48<>"",I48<>""),(DistHoriz/LeistungHoriz+ ABS(IF(HöhenDiff<0,HöhenDiff/ZuschlagAbw,HöhenDiff/ZuschlagAuf)))/24,"") -> 01:18:49.500 | L48: =IF(K48="","",L47+K48) -> 19:53:15
A49: Gonzen | C49: 1829 | D49: Älpli | F49: 1337 | G49: 1250 | H49: 55425 | I49: -492 | K49: =IF(AND(G49<>"",I49<>""),(DistHoriz/LeistungHoriz+ ABS(IF(HöhenDiff<0,HöhenDiff/ZuschlagAbw,HöhenDiff/ZuschlagAuf)))/24,"") -> 00:39:36 | L49: =IF(K49="","",L48+K49) -> 20:32:51
A50: Älpli | C50: 1337 | D50: Sargans Zentrum | F50: 483 | G50: 4750 | H50: 60175 | I50: -854 | K50: =IF(AND(G50<>"",I50<>""),(DistHoriz/LeistungHoriz+ ABS(IF(HöhenDiff<0,HöhenDiff/ZuschlagAbw,HöhenDiff/ZuschlagAuf)))/24,"") -> 01:39:42 | L50: =IF(K50="","",L49+K50) -> 22:12:33
A51: Sargans Zentrum | C51: 483 | K51: =IF(AND(G51<>"",I51<>""),(DistHoriz/LeistungHoriz+ ABS(IF(HöhenDiff<0,HöhenDiff/ZuschlagAbw,HöhenDiff/ZuschlagAuf)))/24,"") -> 
I52: =SUMIF(I9:I50,">0") -> 4858
A53: Total | G53: =IF(G9>0,SUM(G9:G50),"") -> 60175 | K53: =IF(K9<>"",SUM(K9:K50),"") -> 22:12:33 | L53: =IF(K53="","",ROUND(K53*24*4,0)/4) -> 22.25
I54: =SUMIF(I9:I50,"<0") -> -4922
A56: Höhenprofil | F56: Leistungskilometer: | G56: =IF(G53="","",G53/1000+(I52/100)) -> 108.755

Sheet Grabsumrundung
A2: Marschzeitberechnung | J2: Horizontal-Marschleistung: | K2: 5000
J3: Zuschlag aufwärts: | K3: 800
J4: Zuschlag abwärts: | K4: 1200
A6: TEILSTRECKE | G6: geometr. Parameter | K6: Marschzeit | M6: Bemerkungen
A7: Ort | B7: Anfang | C7: Höhe | D7: Ort | E7: Ende | F7: Höhe | G7: Distanz | H7: kumulativ | I7: Höhendiff. | J7: Azimut | K7: einzeln | L7: kumulativ
B8: Koordinaten | C8: m.ü.M. | D8: =IF(A9="","",A9) -> Grabs (Simmibödeli) | E8: Koordinaten | F8: =IF(C9="","",C9) -> 547 | G8: m | H8: 0 | I8: m | J8: Art.Prom.
A9: Grabs (Simmibödeli) | B9: 750'850/228'900 | C9: 547 | D9: =IF(A10<>"",A10,"") -> Simmitobel Pt. 638 | E9: =IF(B10<>"",B10,"") ->  | F9: =IF(C10<>"",C10,"") -> 638 | G9: 1000 | H9: =IF(G9="","",G9) -> 1000 | I9: =IF(AND(Höhe1<>"",Höhe2<>""),Höhe2-Höhe1,"") -> 91 | K9: =IF(AND(G9<>"",I9<>""),(DistHoriz/LeistungHoriz+ ABS(IF(HöhenDiff<0,HöhenDiff/ZuschlagAbw,HöhenDiff/ZuschlagAuf)))/24,"") -> 00:18:49.500 | L9: =IF(K9="","",K9) -> 00:18:49.500
A10: Simmitobel Pt. 638 | C10: 638 | D10: Simmitobel Pt. 700 | F10: 700 | G10: 900 | H10: =IF(H9="","",H9+G10) -> 1900 | I10: 62 | K10: 00:15:27 | L10: =IF(K10="","",L9+K10) -> 00:34:16.500
A11: Simmitobel Pt. 700 | C11: 700 | D11: Hinter Bädli (Abzw.) | E11: 748940/228725 | F11: 900 | G11: 1250 | H11: 3150 | I11: 200 | K11: 00:30:00 | L11: 01:04:16.500
A12: Hinter Bädli (Abzw.) | B12: 748940/228725 | C12: 900 | D12: Badweid (Abzw.) | F12: 945 | G12: 1200 | H12: 4350 | I12: 45 | K12: 00:17:46.500 | L12: 01:22:03
A13: Badweid (Abzw.) | C13: 945 | D13: Hiltisbrunnen | F13: 1208 | G13: 2875 | H13: 7225 | I13: 263 | K13: 00:54:13.500 | L13: 02:16:16.500
A14: Hiltisbrunnen | C14: 1208 | D14: Langenwald Pt. 1289 | F14: 1289 | G14: 1550 | H14: 8775 | I14: 81 | K14: 00:24:40.500 | L14: 02:40:57
A15: Langenwald Pt. 1289 | C15: 1289 | D15: Engi | F15: 1346 | G15: 2250 | H15: 11025 | I15: 57 | K15: 00:31:16.500 | L15: 03:12:13.500 | M15: querfeldein
A16: Engi | C16: 1346 | D16: ob Seichbergwald Pt. 1499 | F16: 1499 | G16: 650 | H16: 11675 | I16: 153 | K16: 00:19:16.500 | L16: 03:31:30
A17: ob Seichbergwald Pt. 1499 | C17: 1499 | D17: Seichberg | F17: 1804 | G17: 1325 | H17: 13000 | I17: 305 | K17: 00:38:46.500 | L17: 04:10:16.500 | M17: z. T. querfeldein
A18: Seichberg | C18: 1804 | D18: Unt. Plisen | F18: 1728 | G18: 950 | H18: 13950 | I18: -76 | K18: 00:15:12 | L18: 04:25:28.500
A19: Unt. Plisen | C19: 1728 | D19: Schlachtböden | F19: 2102 | G19: 1750 | H19: 15700 | I19: 374 | K19: 00:49:03 | L19: 05:14:31.500
A20: Schlachtböden | C20: 2102 | D20: Chäserrugg | F20: 2262 | G20: 825 | H20: 16525 | I20: 160 | K20: 00:21:54 | L20: 05:36:25.500
A21: Chäserrugg | C21: 2262 | D21: Pt. 2208 | F21: 2208 | G21: 1250 | H21: 17775 | I21: -54 | K21: 00:17:42 | L21: 05:54:07.500
A22: Pt. 2208 | C22: 2208 | D22: Trestercholben | F22: 2160 | G22: 450 | H22: 18225 | I22: -48 | K22: 00:07:48 | L22: 06:01:55.500
A23: Trestercholben | C23: 2160 | D23: Trestercholben Fuss | F23: 1980 | G23: 200 | H23: 18425 | I23: -180 | K23: 00:11:24 | L23: 06:13:19.500 | M23: abseilen -> mehr Zeit
A24: Trestercholben Fuss | C24: 1980 | D24: Nideri | F24: 1833 | G24: 700 | H24: 19125 | I24: -147 | K24: 00:15:45 | L24: 06:29:04.500
A25: Nideri | C25: 1833 | D25: Höchst | F25: 2025 | G25: 1000 | H25: 20125 | I25: 192 | K25: 00:26:24 | L25: 06:55:28.500
A26: Höchst | C26: 2025 | D26: Gulms Seelein | F26: 1820 | G26: 1000 | H26: 21125 | I26: -205 | K26: 00:22:15 | L26: 07:17:43.500
A27: Gulms Seelein | C27: 1820 | D27: Sichelchamm | F27: 2269 | G27: 1025 | H27: 22150 | I27: 449 | K27: 00:45:58.500 | L27: 08:03:42
A28: Sichelchamm | C28: 2269 | D28: Schiffloch | F28: 2000 | G28: 375 | H28: 22525 | I28: -269 | K28: 00:17:57 | L28: 08:21:39 | M28: bei Steinschlag
A29: Schiffloch | C29: 2000 | D29: Schiffberg | F29: 2195 | G29: 450 | H29: 22975 | I29: 195 | K29: 00:20:01.500 | L29: 08:41:40.500 | M29: über Chemmi
A30: Schiffberg | C30: 2195 | D30: Gamsberg Fuss | F30: 2160 | G30: 400 | H30: 23375 | I30: -35 | K30: 00:06:33 | L30: 08:48:13.500 | M30: H:1960 D:1'100
A31: Gamsberg Fuss | C31: 2160 | D31: Gamsberg | F31: 2385 | G31: 500 | H31: 23875 | I31: 225 | K31: 00:22:52.500 | L31: 09:11:06 | M31: H:2385 D:1'000
A32: Gamsberg | C32: 2385 | D32: Chemmi (Gamsberg) | F32: 2160 | G32: 425 | H32: 24300 | I32: -225 | K32: 00:16:21 | L32: 09:27:27 | M32: (etwa 45' mehr Zeit)
A33: Chemmi (Gamsberg) | C33: 2160 | D33: Sichli | F33: 2320 | G33: 300 | H33: 24600 | I33: 160 | K33: 00:15:36 | L33: 09:43:03
A34: Sichli | C34: 2320 | D34: Rosswis | F34: 2334 | G34: 300 | H34: 24900 | I34: 14 | K34: 00:04:39 | L34: 09:47:42
A35: Rosswis | C35: 2334 | D35: Loch | F35: 2080 | G35: 600 | H35: 25500 | I35: -254 | K35: 00:19:54 | L35: 10:07:36 | M35: evtl. schnellere Route
A36: Loch | C36: 2080 | D36: Chli Fulfirst | F36: 2372 | G36: 725 | H36: 26225 | I36: 292 | K36: 00:30:36 | L36: 10:38:12 | M36: evtl. schnellere Route
A37: Chli Fulfirst | C37: 2372 | D37: Glannachopf Fuss | F37: 2100 | G37: 875 | H37: 27100 | I37: -272 | K37: 00:24:06 | L37: 11:02:18 | M37: evtl. schnellere Route
A38: Glannachopf Fuss | C38: 2100 | D38: Glannachopf | F38: 2232 | G38: 175 | H38: 27275 | I38: 132 | K38: 00:12:00 | L38: 11:14:18 | M38: evtl. schnellere Route
A39: Glannachopf | C39: 2232 | D39: Sisitzgrat | F39: 2016 | G39: 625 | H39: 27900 | I39: -216 | K39: 00:18:18 | L39: 11:32:36
A40: Sisitzgrat | C40: 2016 | D40: Margelchopf | F40: 2167 | G40: 500 | H40: 28400 | I40: 151 | K40: 00:17:19.500 | L40: 11:49:55.500
A41: Margelchopf | C41: 2167 | D41: Forenchopf | F41: 1876 | G41: 675 | H41: 29075 | I41: -291 | K41: 00:22:39 | L41: 12:12:34.500
A42: Forenchopf | C42: 1876 | D42: Ivelspus | F42: 1170 | G42: 1625 | H42: 30700 | I42: -706 | K42: 00:54:48 | L42: 13:07:22.500
A43: Ivelspus | C43: 1170 | D43: Wassergass Pt. 899 | F43: 899 | G43: 2150 | H43: 32850 | I43: -271 | K43: 00:39:21 | L43: 13:46:43.500
A44: Wassergass Pt. 899 | C44: 899 | D44: Montaschin Abzw. | F44: 650 | G44: 1725 | H44: 34575 | I44: -249 | K44: 00:33:09 | L44: 14:19:52.500 | M44: alles der Wassergass
A45: Montaschin Abzw. | C45: 650 | D45: Werdenberg Pt. 444 | F45: 444 | G45: 1575 | H45: 36150 | I45: -206 | K45: 00:29:12 | L45: 14:49:04.500 | M45: folgen ist auch möglich
A46: Werdenberg Pt. 444 | C46: 444 | D46: Siedlung | F46: 444 | G46: 2900 | H46: 39050 | I46: 0 | K46: 00:34:48 | L46: 15:23:52.500
A47: Siedlung | C47: 444 | D47: Mümzgraben | F47: 444 | G47: 1200 | H47: 40250 | I47: 0 | K47: 00:14:24 | L47: 15:38:16.500
A48: Mümzgraben | C48: 444 | D48: Rufers | F48: 475 | G48: 1875 | H48: 42125 | I48: 31 | K48: 00:24:49.500 | L48: 16:03:06
A49: Rufers | C49: 475 | D49: Wolfhag | F49: 472 | G49: 350 | H49: 42475 | I49: -3 | K49: 00:04:21 | L49: 16:07:27
A50: Wolfhag | C50: 472 | D50: Simmibödeli | E50: 748940/228725 | F50: 547 | G50: 1300 | H50: 43775 | I50: 75 | K50: 00:21:13.500 | L50: 16:28:40.500
A51: Simmibödeli | B51: 748940/228725 | C51: 547
I52: =SUMIF(I9:I50,">0") -> 3707
A53: Total | G53: =IF(G9>0,SUM(G9:G50),"") -> 43775 | K53: =IF(K9<>"",SUM(K9:K50),"") -> 16:28:40.500 | L53: =IF(K53="","",ROUND(K53*24*4,0)/4) -> 16.5
I54: =SUMIF(I9:I50,"<0") -> -3707
A56: Höhenprofil | F56: Leistungskilometer: | G56: =IF(G53="","",G53/1000+(I52/100)) -> 80.845

Sheet Zwinglipass
A2: Marschzeitberechnung | J2: Horizontal-Marschleistung: | K2: 4800
J3: Zuschlag aufwärts: | K3: 400
J4: Zuschlag abwärts: | K4: 700
A6: TEILSTRECKE | G6: geometr. Parameter | K6: Marschzeit | M6: Bemerkungen
A7: Ort | B7: Anfang | C7: Höhe | D7: Ort | E7: Ende | F7: Höhe | G7: Distanz | H7: kumulativ | I7: Höhendiff. | J7: Azimut | K7: einzeln | L7: kumulativ
B8: Koordinaten | C8: m.ü.M. | D8: =IF(A9="","",A9) -> Parkplatz | E8: Koordinaten | F8: =IF(C9="","",C9) -> 1098 | G8: m | H8: 0 | I8: m | J8: Art.Prom.
A9: Parkplatz | B9: 74500/229960 | C9: 1098 | D9: =IF(A10<>"",A10,"") -> Gamplüt | E9: =IF(B10<>"",B10,"") ->  | F9: =IF(C10<>"",C10,"") -> 1350 | G9: 1250 | H9: =IF(G9="","",G9) -> 1250 | I9: =IF(AND(Höhe1<>"",Höhe2<>""),Höhe2-Höhe1,"") -> 252 | K9: =IF(AND(G9<>"",I9<>""),(DistHoriz/LeistungHoriz+ ABS(IF(HöhenDiff<0,HöhenDiff/ZuschlagAbw,HöhenDiff/ZuschlagAuf)))/24,"") -> 00:53:25.500 | L9: =IF(K9="","",K9) -> 00:53:25.500
A10: Gamplüt | C10: 1350 | D10: Fros | F10: 1443 | G10: 800 | H10: =IF(H9="","",H9+G10) -> 2050 | I10: 93 | K10: 00:23:57 | L10: =IF(K10="","",L9+K10) -> 01:17:22.500
A11: Fros | C11: 1443 | D11: Pkt.1389 | F11: 1389 | G11: 500 | H11: 2550 | I11: -54 | K11: 00:10:52.714 | L11: 01:28:15.214
A12: Pkt.1389 | C12: 1389 | D12: Teselalp | F12: 1433 | G12: 1000 | H12: 3550 | I12: 44 | K12: 00:19:06 | L12: 01:47:21.214
A13: Teselalp | C13: 1433 | D13: Pkt.1499 | F13: 1499 | G13: 600 | H13: 4150 | I13: 66 | K13: 00:17:24 | L13: 02:04:45.214
A14: Pkt.1499 | C14: 1499 | D14: Zwinglihütte | F14: 1985 | G14: 2000 | H14: 6150 | I14: 486 | K14: 01:37:54 | L14: 03:42:39.214
A15: Zwinglihütte | C15: 1985 | D15: Zwinglipass | F15: 2011 | G15: 400 | H15: 6550 | I15: 26 | K15: 00:08:54 | L15: 03:51:33.214
A16: Zwinglipass | C16: 2011 | D16: Pkt. 2067 | F16: 2067 | G16: 700 | H16: 7250 | I16: 56 | K16: 00:17:09 | L16: 04:08:42.214
A17: Pkt. 2067 | C17: 2067 | D17: Chreialpfirst | F17: 2125 | G17: 1100 | H17: 8350 | I17: 58 | K17: 00:22:27 | L17: 04:31:09.214
A18: Chreialpfirst | C18: 2125 | D18: Mutschensattel | F18: 2069 | G18: 700 | H18: 9050 | I18: -56 | K18: 00:13:33 | L18: 04:44:42.214
A19: Mutschensattel | C19: 2069 | D19: Mutschen | F19: 2121 | G19: 700 | H19: 9750 | I19: 52 | K19: 00:16:33 | L19: 05:01:15.214
A20: Mutschen | C20: 2121 | D20: Mutschensattel | F20: 2069 | G20: 700 | H20: 10450 | I20: -52 | K20: 00:13:12.429 | L20: 05:14:27.643
A21: Mutschensattel | C21: 2069 | D21: Roslenalp | F21: 1767 | G21: 1500 | H21: 11950 | I21: -302 | K21: 00:44:38.143 | L21: 05:59:05.786
A22: Roslenalp | C22: 1767 | D22: Saxer-Lücke | F22: 1649 | G22: 800 | H22: 12750 | I22: -118 | K22: 00:20:06.857 | L22: 06:19:12.643
A23: Saxer-Lücke | C23: 1649 | D23: Bollenwees | F23: 1470 | G23: 800 | H23: 13550 | I23: -179 | K23: 00:25:20.571 | L23: 06:44:33.214
A24: Bollenwees | C24: 1470 | H24: 13550
H25: 13550
H26: 13550
H27: 13550
H28: 13550
H29: 13550
H30: 13550
H31: 13550
H32: 13550
H33: 13550
I35: =SUMIF(I9:I33,">0") -> 1133
A36: Total | G36: =IF(G9>0,SUM(G9:G33),"") -> 13550 | K36: =IF(K9<>"",SUM(K9:K33),"") -> 06:44:33.214 | L36: =IF(K36="","",ROUND(K36*24*4,0)/4) -> 6.75
I37: =SUMIF(I9:I33,"<0") -> -761
A39: Höhenprofil | F39: Leistungskilometer: | G39: =IF(G36="","",G36/1000+(I35/100)) -> 24.88

Sheet Gamsberg
A2: Marschzeitberechnung | J2: Horizontal-Marschleistung: | K2: 5000
J3: Zuschlag aufwärts: | K3: 800
J4: Zuschlag abwärts: | K4: 1200
A6: TEILSTRECKE | G6: geometr. Parameter | K6: Marschzeit | M6: Bemerkungen
A7: Ort | B7: Anfang | C7: Höhe | D7: Ort | E7: Ende | F7: Höhe | G7: Distanz | H7: kumulativ | I7: Höhendiff. | J7: Azimut | K7: einzeln | L7: kumulativ
B8: Koordinaten | C8: m.ü.M. | D8: =IF(A9="","",A9) -> Grabs (Kohlplatz) | E8: Koordinaten | F8: =IF(C9="","",C9) -> 497 | G8: m | H8: 0 | I8: m | J8: Art.Prom.
A9: Grabs (Kohlplatz) | B9: 751540/227380 | C9: 497 | D9: =IF(A10<>"",A10,"") -> Rogghalm | E9: =IF(B10<>"",B10,"") ->  | F9: =IF(C10<>"",C10,"") -> 909 | G9: 2400 | H9: =IF(G9="","",G9) -> 2400 | I9: =IF(AND(Höhe1<>"",Höhe2<>""),Höhe2-Höhe1,"") -> 412 | K9: =IF(AND(G9<>"",I9<>""),(DistHoriz/LeistungHoriz+ ABS(IF(HöhenDiff<0,HöhenDiff/ZuschlagAbw,HöhenDiff/ZuschlagAuf)))/24,"") -> 00:59:42 | L9: =IF(K9="","",K9) -> 00:59:42
A10: Rogghalm | C10: 909 | D10: Voralp (Kurhaus) | F10: 1218 | G10: 2950 | H10: =IF(H9="","",H9+G10) -> 5350 | I10: 309 | K10: 00:58:34.500 | L10: =IF(K10="","",L9+K10) -> 01:58:16.500
A11: Voralp (Kurhaus) | C11: 1218 | D11: Schlawitz (Alti Hütte) | F11: 1585 | G11: 2850 | H11: 8200 | I11: 367 | K11: 01:01:43.500 | L11: 03:00:00
A12: Schlawitz (Alti Hütte) | C12: 1585 | D12: Nideri | F12: 1833 | G12: 1350 | H12: 9550 | I12: 248 | K12: 00:34:48 | L12: 03:34:48
A13: Nideri | C13: 1833 | D13: Höchst | F13: 2025 | G13: 1000 | H13: 10550 | I13: 192 | K13: 00:26:24 | L13: 04:01:12
A14: Höchst | C14: 2025 | D14: Naus Pt. 1482 | F14: 1482 | G14: 1525 | H14: 12075 | I14: -543 | K14: 00:45:27 | L14: 04:46:39
A15: Naus Pt. 1482 | C15: 1482 | D15: Unterlänggli | F15: 1649 | G15: 950 | H15: 13025 | I15: 167 | K15: 00:23:55.500 | L15: 05:10:34.500
A16: Unterlänggli | C16: 1649 | D16: Oberlänggli | F16: 1770 | G16: 675 | H16: 13700 | I16: 121 | K16: 00:17:10.500 | L16: 05:27:45
A17: Oberlänggli | C17: 1770 | D17: Chemmi (Gamsberg) | F17: 2170 | G17: 1580 | H17: 15280 | I17: 400 | K17: 00:48:57.600 | L17: 06:16:42.600
A18: Chemmi (Gamsberg) | C18: 2170 | D18: Gamsberg | F18: 2385 | G18: 425 | H18: 15705 | I18: 215 | K18: 00:21:13.500 | L18: 06:37:56.100
A19: Gamsberg | C19: 2385 | D19: Chemmi (Gamsberg) | F19: 2170 | G19: 425 | H19: 16130 | I19: -215 | K19: 00:15:51 | L19: 06:53:47.100
A20: Chemmi (Gamsberg) | C20: 2170 | D20: Oberlänggli | F20: 1770 | G20: 1580 | H20: 17710 | I20: -400 | K20: 00:38:57.600 | L20: 07:32:44.700
A21: Oberlänggli | C21: 1770 | H21: 17710
H22: 17710
H23: 17710
H24: 17710
H25: 17710
H26: 17710
H27: 17710
H28: 17710
H29: 17710
H30: 17710
H31: 17710
H32: 17710
H33: 17710
I35: =SUMIF(I9:I33,">0") -> 2431
A36: Total | G36: =IF(G9>0,SUM(G9:G33),"") -> 17710 | K36: =IF(K9<>"",SUM(K9:K33),"") -> 07:32:44.700 | L36: =IF(K36="","",ROUND(K36*24*4,0)/4) -> 7.5
I37: =SUMIF(I9:I33,"<0") -> -1158
A39: Höhenprofil | F39: Leistungskilometer: | G39: =IF(G36="","",G36/1000+(I35/100)) -> 42.02

Sheet Pfälzerhütte-Naafkopf
A2: Marschzeitberechnung | J2: Horizontal-Marschleistung: | K2: 5000
J3: Zuschlag aufwärts: | K3: 800
J4: Zuschlag abwärts: | K4: 1200
A6: TEILSTRECKE | G6: geometr. Parameter | K6: Marschzeit | M6: Bemerkungen
A7: Ort | B7: Anfang | C7: Höhe | D7: Ort | E7: Ende | F7: Höhe | G7: Distanz | H7: kumulativ | I7: Höhendiff. | J7: Azimut | K7: einzeln | L7: kumulativ
B8: Koordinaten | C8: m.ü.M. | D8: =IF(A9="","",A9) -> Steg Pt. 1303 | E8: Koordinaten | F8: =IF(C9="","",C9) -> 1303 | G8: m | H8: 0 | I8: m | J8: Art.Prom.
A9: Steg Pt. 1303 | B9: 762200/220160 | C9: 1303 | D9: =IF(A10<>"",A10,"") -> Klein Steg (Parkplatz) | E9: =IF(B10<>"",B10,"") ->  | F9: =IF(C10<>"",C10,"") -> 1303 | G9: 825 | H9: =IF(G9="","",G9) -> 825 | I9: =IF(AND(Höhe1<>"",Höhe2<>""),Höhe2-Höhe1,"") -> 0 | K9: =IF(AND(G9<>"",I9<>""),(DistHoriz/LeistungHoriz+ ABS(IF(HöhenDiff<0,HöhenDiff/ZuschlagAbw,HöhenDiff/ZuschlagAuf)))/24,"") -> 00:09:54 | L9: =IF(K9="","",K9) -> 00:09:54
A10: Klein Steg (Parkplatz) | C10: 1303 | D10: Alp Valüna | F10: 1409 | G10: 2675 | H10: =IF(H9="","",H9+G10) -> 3500 | I10: 106 | K10: 00:40:03 | L10: =IF(K10="","",L9+K10) -> 00:49:57
A11: Alp Valüna | C11: 1409 | D11: Obersäss | F11: 1646 | G11: 1975 | H11: 5475 | I11: 237 | K11: 00:41:28.500 | L11: 01:31:25.500
A12: Obersäss | C12: 1646 | D12: Friedböden | F12: 1811 | G12: 750 | H12: 6225 | I12: 165 | K12: 00:21:22.500 | L12: 01:52:48
A13: Friedböden | C13: 1811 | D13: Gritschner Naaf | F13: 1900 | G13: 825 | H13: 7050 | I13: 89 | K13: 00:16:34.500 | L13: 02:09:22.500
A14: Gritschner Naaf | C14: 1900 | D14: Pfälzerhütte | F14: 2111 | G14: 925 | H14: 7975 | I14: 211 | K14: 00:26:55.500 | L14: 02:36:18
A15: Pfälzerhütte | C15: 2111 | D15: Naafkopf | F15: 2570 | G15: 1600 | H15: 9575 | I15: 459 | K15: 00:53:37.500 | L15: 03:29:55.500
A16: Naafkopf | C16: 2570 | D16: Pfälzerhütte | F16: 2111 | G16: 1600 | H16: 11175 | I16: -459 | K16: 00:42:09 | L16: 04:12:04.500 | M16: allein: 36'
A17: Pfälzerhütte | C17: 2111 | D17: Augstenberg | F17: 2359 | G17: 1425 | H17: 12600 | I17: 248 | K17: 00:35:42 | L17: 04:47:46.500 | M17: allein: 20'
A18: Augstenberg | C18: 2359 | D18: Sareiser Joch | F18: 2000 | G18: 2050 | H18: 14650 | I18: -359 | K18: 00:42:33 | L18: 05:30:19.500
A19: Sareiser Joch | C19: 2000 | D19: Kuhloch | F19: 1956 | G19: 575 | H19: 15225 | I19: -44 | K19: 00:09:06 | L19: 05:39:25.500
A20: Kuhloch | C20: 1956 | D20: Bergstation (Beim Kreuz) | F20: 1990 | G20: 400 | H20: 15625 | I20: 34 | K20: 00:07:21 | L20: 05:46:46.500
A21: Bergstation (Beim Kreuz) | C21: 1990 | D21: Malbun Pt. 1599 | E21: 764640/219130 | F21: 1599 | G21: 2750 | H21: 18375 | I21: -391 | K21: 00:52:33 | L21: 06:39:19.500
A22: Malbun Pt. 1599 | B22: 764640/219130 | C22: 1599 | H22: 18375
H23: 18375
H24: 18375
H25: 18375
H26: 18375
H27: 18375
H28: 18375
H29: 18375
H30: 18375
H31: 18375
H32: 18375
H33: 18375
I35: =SUMIF(I9:I33,">0") -> 1549
A36: Total | G36: =IF(G9>0,SUM(G9:G33),"") -> 18375 | K36: =IF(K9<>"",SUM(K9:K33),"") -> 06:39:19.500 | L36: =IF(K36="","",ROUND(K36*24*4,0)/4) -> 6.75
I37: =SUMIF(I9:I33,"<0") -> -1253
A39: Höhenprofil | F39: Leistungskilometer: | G39: =IF(G36="","",G36/1000+(I35/ZuschlagAuf+I37/-ZuschlagAbw)*(LeistungHoriz/1000)) -> 33.27708333

Sheet Pfälzerhütte KBW 2004
A2: Marschzeitberechnung | J2: Horizontal-Marschleistung: | K2: 4500
J3: Zuschlag aufwärts: | K3: 400
J4: Zuschlag abwärts: | K4: 800
A6: TEILSTRECKE | G6: geometr. Parameter | K6: Marschzeit | M6: Bemerkungen
A7: Ort | B7: Anfang | C7: Höhe | D7: Ort | E7: Ende | F7: Höhe | G7: Distanz | H7: kumulativ | I7: Höhendiff. | J7: Azimut | K7: einzeln | L7: kumulativ
B8: Koordinaten | C8: m.ü.M. | D8: =IF(A9="","",A9) -> Steg Pt. 1303 | E8: Koordinaten | F8: =IF(C9="","",C9) -> 1303 | G8: m | H8: 0 | I8: m | J8: Art.Prom.
A9: Steg Pt. 1303 | B9: 762200/220160 | C9: 1303 | D9: =IF(A10<>"",A10,"") -> Klein Steg (Parkplatz) | E9: =IF(B10<>"",B10,"") ->  | F9: =IF(C10<>"",C10,"") -> 1303 | G9: 825 | H9: =IF(G9="","",IF(G9=H8,"",G9)) -> 825 | I9: =IF(AND(Höhe1<>"",Höhe2<>""),Höhe2-Höhe1,"") -> 0 | K9: =IF(AND(G9<>"",I9<>""),(DistHoriz/LeistungHoriz+ ABS(IF(HöhenDiff<0,HöhenDiff/ZuschlagAbw,HöhenDiff/ZuschlagAuf)))/24,"") -> 00:11:00 | L9: =IF(K9="","",K9) -> 00:11:00
A10: Klein Steg (Parkplatz) | C10: 1303 | D10: Alp Valüna | F10: 1409 | G10: 2675 | H10: =IF(H9="","",H9+G10) -> 3500 | I10: 106 | K10: 00:51:34 | L10: =IF(K10="","",L9+K10) -> 01:02:34
A11: Alp Valüna | C11: 1409 | D11: Obersäss | F11: 1646 | G11: 1975 | H11: 5475 | I11: 237 | K11: 01:01:53 | L11: 02:04:27
A12: Obersäss | C12: 1646 | D12: Friedböden | F12: 1811 | G12: 750 | H12: 6225 | I12: 165 | K12: 00:34:45 | L12: 02:39:12
A13: Friedböden | C13: 1811 | D13: Gritschner Naaf | F13: 1900 | G13: 825 | H13: 7050 | I13: 89 | K13: 00:24:21 | L13: 03:03:33
A14: Gritschner Naaf | C14: 1900 | D14: Pfälzerhütte | F14: 2111 | G14: 925 | H14: 7975 | I14: 211 | K14: 00:43:59 | L14: 03:47:32
A15: Pfälzerhütte | C15: 2111 | D15: Augstenberg | F15: 2359 | G15: 1425 | H15: 9400 | I15: 248 | K15: 00:56:12 | L15: 04:43:44
A16: Augstenberg | C16: 2359 | D16: Sareiser Joch | F16: 2000 | G16: 2050 | H16: 11450 | I16: -359 | K16: 00:54:15.500 | L16: 05:37:59.500
A17: Sareiser Joch | C17: 2000 | D17: Kuhloch | F17: 1956 | G17: 575 | H17: 12025 | I17: -44 | K17: 00:10:58 | L17: 05:48:57.500
A18: Kuhloch | C18: 1956 | D18: Bergstation (Beim Kreuz) | F18: 1990 | G18: 400 | H18: 12425 | I18: 34 | K18: 00:10:26 | L18: 05:59:23.500
A19: Bergstation (Beim Kreuz) | C19: 1990 | D19: Malbun Pt. 1599 | E19: 764640/219130 | F19: 1599 | G19: 2750 | H19: 15175 | I19: -391 | K19: 01:05:59.500 | L19: 07:05:23
A20: Malbun Pt. 1599 | B20: 764640/219130 | C20: 1599 | H20: 15175
H21: 15175
H22: 15175
H23: 15175
H24: 15175
H25: 15175
H26: 15175
H27: 15175
H28: 15175
H29: 15175
H30: 15175
H31: 15175
H32: 15175
H33: 15175
I35: =SUMIF(I9:I33,">0") -> 1090
A36: Total | G36: =IF(G9>0,SUM(G9:G33),"") -> 15175 | K36: =IF(K9<>"",SUM(K9:K33),"") -> 07:05:23 | L36: =IF(K36="","",ROUND(K36*24*4,0)/4) -> 7
I37: =SUMIF(I9:I33,"<0") -> -794
A39: Höhenprofil | F39: Leistungskilometer: | G39: =IF(G36="","",G36/1000+(I35/ZuschlagAuf+I37/-ZuschlagAbw)*(LeistungHoriz/1000)) -> 31.90375

Sheet Gamsalp–Langwitti–Voralp
A2: Marschzeitberechnung | J2: Horizontal-Marschleistung: | K2: 4500
J3: Zuschlag aufwärts: | K3: 400
J4: Zuschlag abwärts: | K4: 800
A6: TEILSTRECKE | G6: geometr. Parameter | K6: Marschzeit | M6: Bemerkungen
A7: Ort | B7: Anfang | C7: Höhe | D7: Ort | E7: Ende | F7: Höhe | G7: Distanz | H7: kumulativ | I7: Höhendiff. | J7: Azimut | K7: einzeln | L7: kumulativ
B8: Koordinaten | C8: m.ü.M. | D8: =IF(A9="","",A9) -> Gamsalp | E8: Koordinaten | F8: =IF(C9="","",C9) -> 1767 | G8: m | H8: 0 | I8: m | J8: Art.Prom.
A9: Gamsalp | B9: 744080/226375 | C9: 1767 | D9: =IF(A10<>"",A10,"") -> Warmtobel | E9: =IF(B10<>"",B10,"") -> 744250/226200 | F9: =IF(C10<>"",C10,"") -> 1740 | G9: 250 | H9: =IF(G9="","",IF(G9=H8,"",G9)) -> 250 | I9: =IF(AND(Höhe1<>"",Höhe2<>""),Höhe2-Höhe1,"") -> -27 | K9: =IF(AND(G9<>"",I9<>""),(DistHoriz/LeistungHoriz+ ABS(IF(HöhenDiff<0,HöhenDiff/ZuschlagAbw,HöhenDiff/ZuschlagAuf)))/24,"") -> 00:05:21.500 | L9: =IF(K9="","",K9) -> 00:05:21.500
A10: Warmtobel | B10: 744250/226200 | C10: 1740 | D10: Warmtobel II | E10: 744425/226250 | F10: 1740 | G10: 150 | H10: =IF(H9="","",H9+G10) -> 400 | I10: 0 | K10: 00:02:00 | L10: =IF(K10="","",L9+K10) -> 00:07:21.500
A11: Warmtobel II | B11: 744425/226250 | C11: 1740 | D11: Inggadells | E11: 744525/225975 | F11: 1800 | G11: 300 | H11: 700 | I11: 60 | K11: 00:13:00 | L11: 00:20:21.500
A12: Inggadells | B12: 744525/225975 | C12: 1800 | D12: Sattel (Marzils) | E12: 744750/226050 | F12: 1780 | G12: 125 | H12: 825 | I12: -20 | K12: 00:03:10 | L12: 00:23:31.500
A13: Sattel (Marzils) | B13: 744750/226050 | C13: 1780 | D13: Langwitti-Schacht | E13: 744800/225975 | F13: 1765 | G13: 200 | H13: 1025 | I13: -15 | K13: 00:03:47.500 | L13: 00:27:19
A14: Langwitti-Schacht | B14: 744800/225975 | C14: 1765 | D14: Alp Sässli | E14: 745225/226275 | F14: 1695 | G14: 500 | H14: 1525 | I14: -70 | K14: 00:11:55 | L14: 00:39:14
A15: Alp Sässli | B15: 745225/226275 | C15: 1695 | D15: Hintere Witti | E15: 746275/226025 | F15: 1380 | G15: 1650 | H15: 3175 | I15: -315 | K15: 00:45:37.500 | L15: 01:24:51.500
A16: Hintere Witti | B16: 746275/226025 | C16: 1380 | D16: Gamperfin | E16: 747025/226200 | F16: 1303 | G16: 1060 | H16: 4235 | I16: -77 | K16: 00:19:54.500 | L16: 01:44:46
A17: Gamperfin | B17: 747025/226200 | C17: 1303 | D17: Voralp Kurhaus | E17: 747020/225320 | F17: 1218 | G17: 1160 | H17: 5395 | I17: -85 | K17: 00:21:50.500 | L17: 02:06:36.500
A18: Voralp Kurhaus | B18: 747020/225320 | C18: 1218 | H18: 5395
H19: 5395
H20: 5395
H21: 5395
H22: 5395
H23: 5395
H24: 5395
H25: 5395
H26: 5395
H27: 5395
H28: 5395
H29: 5395
H30: 5395
H31: 5395
H32: 5395
H33: 5395
I35: =SUMIF(I9:I33,">0") -> 60
A36: Total | G36: =IF(G9>0,SUM(G9:G33),"") -> 5395 | K36: =IF(K9<>"",SUM(K9:K33),"") -> 02:06:36.500 | L36: =IF(K36="","",ROUND(K36*24*4,0)/4) -> 2
I37: =SUMIF(I9:I33,"<0") -> -609
A39: Höhenprofil | F39: Leistungskilometer: | G39: =IF(G36="","",G36/1000+(I35/ZuschlagAuf+I37/-ZuschlagAbw)*(LeistungHoriz/1000)) -> 9.495625

Sheet Sagenweg Sennwald
A2: Marschzeitberechnung | J2: Horizontal-Marschleistung: | K2: 4500
J3: Zuschlag aufwärts: | K3: 400
J4: Zuschlag abwärts: | K4: 800
A6: TEILSTRECKE | G6: geometr. Parameter | K6: Marschzeit | M6: Bemerkungen
A7: Ort | B7: Anfang | C7: Höhe | D7: Ort | E7: Ende | F7: Höhe | G7: Distanz | H7: kumulativ | I7: Höhendiff. | J7: Azimut | K7: einzeln | L7: kumulativ
B8: Koordinaten | C8: m.ü.M. | D8: =IF(A9="","",A9) -> Parkplatz Staubern | E8: Koordinaten | F8: =IF(C9="","",C9) -> 480 | G8: m | H8: 0 | I8: m | J8: Art.Prom.
A9: Parkplatz Staubern | C9: 480 | D9: =IF(A10<>"",A10,"") -> Usser Trat | E9: =IF(B10<>"",B10,"") ->  | F9: =IF(C10<>"",C10,"") -> 630 | G9: 1410 | H9: =IF(G9="","",IF(G9=H8,"",G9)) -> 1410 | I9: =IF(AND(Höhe1<>"",Höhe2<>""),Höhe2-Höhe1,"") -> 150 | K9: =IF(AND(G9<>"",I9<>""),(DistHoriz/LeistungHoriz+ ABS(IF(HöhenDiff<0,HöhenDiff/ZuschlagAbw,HöhenDiff/ZuschlagAuf)))/24,"") -> 00:41:18 | L9: =IF(K9="","",K9) -> 00:41:18
A10: Usser Trat | C10: 630 | D10: Haldehüser | F10: 650 | G10: 1310 | H10: =IF(H9="","",H9+G10) -> 2720 | I10: 20 | K10: 00:20:28 | L10: =IF(K10="","",L9+K10) -> 01:01:46
A11: Haldehüser | C11: 650 | D11: Runggelätsch | F11: 605 | G11: 640 | H11: 3360 | I11: -45 | K11: 00:11:54.500 | L11: 01:13:40.500
A12: Runggelätsch | C12: 605 | D12: Burgruine Hohensax | F12: 750 | G12: 870 | H12: 4230 | I12: 145 | K12: 00:33:21 | L12: 01:47:01.500
A13: Burgruine Hohensax | C13: 750 | D13: Pt. 835 (Nasseel) | F13: 835 | G13: 690 | H13: 4920 | I13: 85 | K13: 00:21:57 | L13: 02:08:58.500
A14: Pt. 835 (Nasseel) | C14: 835 | D14: Haldehüser | F14: 650 | G14: 2310 | H14: 7230 | I14: -185 | K14: 00:44:40.500 | L14: 02:53:39
A15: Haldehüser | C15: 650 | D15: Usser Trat | F15: 630 | G15: 1310 | H15: 8540 | I15: -20 | K15: 00:18:58 | L15: 03:12:37
A16: Usser Trat | C16: 630 | D16: Parkplatz Staubern | F16: 480 | G16: 1410 | H16: 9950 | I16: -150 | K16: 00:30:03 | L16: 03:42:40
A17: Parkplatz Staubern | C17: 480 | H17: 9950
H18: 9950
H19: 9950
H20: 9950
H21: 9950
H22: 9950
H23: 9950
H24: 9950
H25: 9950
H26: 9950
H27: 9950
H28: 9950
H29: 9950
H30: 9950
H31: 9950
H32: 9950
H33: 9950
I35: =SUMIF(I9:I33,">0") -> 400
A36: Total | G36: =IF(G9>0,SUM(G9:G33),"") -> 9950 | K36: =IF(K9<>"",SUM(K9:K33),"") -> 03:42:40 | L36: =IF(K36="","",ROUND(K36*24*4,0)/4) -> 3.75
I37: =SUMIF(I9:I33,"<0") -> -400
A39: Höhenprofil | F39: Leistungskilometer: | G39: =IF(G36="","",G36/1000+(I35/ZuschlagAuf+I37/-ZuschlagAbw)*(LeistungHoriz/1000)) -> 16.7

Sheet Wassergasse-Grubenweg
A2: Marschzeitberechnung | J2: Horizontal-Marschleistung: | K2: 4500
J3: Zuschlag aufwärts: | K3: 400
J4: Zuschlag abwärts: | K4: 800
A6: TEILSTRECKE | G6: geometr. Parameter | K6: Marschzeit | M6: Bemerkungen
A7: Ort | B7: Anfang | C7: Höhe | D7: Ort | E7: Ende | F7: Höhe | G7: Distanz | H7: kumulativ | I7: Höhendiff. | J7: Azimut | K7: einzeln | L7: kumulativ
B8: Koordinaten | C8: m.ü.M. | D8: =IF(A9="","",A9) -> Egeten Vita-Parcour | E8: Koordinaten | F8: =IF(C9="","",C9) -> 520 | G8: m | H8: 0 | I8: m | J8: Art.Prom.
A9: Egeten Vita-Parcour | C9: 520 | D9: =IF(A10<>"",A10,"") -> Burgerholz | E9: =IF(B10<>"",B10,"") ->  | F9: =IF(C10<>"",C10,"") -> 598 | G9: 500 | H9: =IF(G9="","",IF(G9=H8,"",G9)) -> 500 | I9: =IF(AND(Höhe1<>"",Höhe2<>""),Höhe2-Höhe1,"") -> 78 | K9: =IF(AND(G9<>"",I9<>""),(DistHoriz/LeistungHoriz+ ABS(IF(HöhenDiff<0,HöhenDiff/ZuschlagAbw,HöhenDiff/ZuschlagAuf)))/24,"") -> 00:18:22 | L9: =IF(K9="","",K9) -> 00:18:22
A10: Burgerholz | C10: 598 | D10: Haslen | F10: 838 | G10: 1600 | H10: =IF(H9="","",H9+G10) -> 2100 | I10: 240 | K10: 00:57:20 | L10: =IF(K10="","",L9+K10) -> 01:15:42
A11: Haslen | C11: 838 | D11: Pt. 899 | F11: 899 | G11: 500 | H11: 2600 | I11: 61 | K11: 00:15:49 | L11: 01:31:31
A12: Pt. 899 | C12: 899 | D12: Pt. 1079 | F12: 1079 | G12: 1100 | H12: 3700 | I12: 180 | K12: 00:41:40 | L12: 02:13:11
A13: Pt. 1079 | C13: 1079 | D13: Valspus (Säss) | F13: 1170 | G13: 1150 | H13: 4850 | I13: 91 | K13: 00:28:59 | L13: 02:42:10
A14: Valspus (Säss) | C14: 1170 | D14: Gschwemmtenwalt Abzw. | F14: 1155 | G14: 350 | H14: 5200 | I14: -15 | K14: 00:05:47.500 | L14: 02:47:57.500
A15: Gschwemmtenwalt Abzw. | C15: 1155 | D15: Härzer | F15: 1000 | G15: 700 | H15: 5900 | I15: -155 | K15: 00:20:57.500 | L15: 03:08:55
A16: Härzer | C16: 1000 | D16: Pt. 929 | F16: 929 | G16: 800 | H16: 6700 | I16: -71 | K16: 00:15:59.500 | L16: 03:24:54.500
A17: Pt. 929 | C17: 929 | D17: Gruaba | F17: 820 | G17: 400 | H17: 7100 | I17: -109 | K17: 00:13:30.500 | L17: 03:38:25
A18: Gruaba | C18: 820 | D18: Bannwald | F18: 855 | G18: 700 | H18: 7800 | I18: 35 | K18: 00:14:35 | L18: 03:53:00
A19: Bannwald | C19: 855 | D19: Rogghalm | F19: 877 | G19: 750 | H19: 8550 | I19: 22 | K19: 00:13:18 | L19: 04:06:18
A20: Rogghalm | C20: 877 | D20: Löchli | F20: 592 | G20: 1400 | H20: 9950 | I20: -285 | K20: 00:40:02.500 | L20: 04:46:20.500
A21: Löchli | C21: 592 | D21: Kohlplatz | F21: 497 | G21: 800 | H21: 10750 | I21: -95 | K21: 00:17:47.500 | L21: 05:04:08
A22: Kohlplatz | C22: 497 | H22: 10750
H23: 10750
H24: 10750
H25: 10750
H26: 10750
H27: 10750
H28: 10750
H29: 10750
H30: 10750
H31: 10750
H32: 10750
H33: 10750
I35: =SUMIF(I9:I33,">0") -> 707
A36: Total | G36: =IF(G9>0,SUM(G9:G33),"") -> 10750 | K36: =IF(K9<>"",SUM(K9:K33),"") -> 05:04:08 | L36: =IF(K36="","",ROUND(K36*24*4,0)/4) -> 5
I37: =SUMIF(I9:I33,"<0") -> -730
A39: Höhenprofil | F39: Leistungskilometer: | G39: =IF(G36="","",G36/1000+(I35/ZuschlagAuf+I37/-ZuschlagAbw)*(LeistungHoriz/1000)) -> 22.81
